[Event "Kadettallsvenskan 2018, sodra kvalet"]
[Site "Vegagatan 20, Gothenburg, Sweden"]
[Date "2018.04.15"]
[Round "6.9"]
[White "Johansson, William"]
[Black "Torngren, Alexander"]
[Result "1-0"]
[TimeControl "45 minutes for the whole game + 10 seconds per move from move one."]
[WhiteFideId "1744070"]
[BlackFideId "1728962"]
[WhiteElo "1462"]
[BlackElo "1214"]

1. d4 {[%clk 00:45:10]} {[%emt 00:00:06]} d5 {[%clk 00:45:16]} {[%emt
00:00:04]} 2. Bf4 {[%clk 00:45:16]} {[%emt 00:00:04]} Nf6 {[%clk 00:45:16]}
{[%emt 00:00:09]} 3. e3 {[%clk 00:45:23]} {[%emt 00:00:03]} Bf5 {[%clk
00:45:15]} {[%emt 00:00:09]} 4. Nf3 {[%clk 00:45:06]} {[%emt 00:00:29]} Nbd7
{[%clk 00:45:14]} {[%emt 00:00:10]} 5. Nbd2 {[%clk 00:44:34]} {[%emt 00:00:43]}
e6 {[%clk 00:45:17]} {[%emt 00:00:07]} 6. Be2 {[%clk 00:44:03]} {[%emt
00:00:42]} Bd6 {[%clk 00:44:43]} {[%emt 00:00:43]} 7. Ne5 {[%clk 00:43:10]}
{[%emt 00:01:04]} O-O {[%clk 00:32:53]} {[%emt 00:11:59]} 8. Ndf3 {[%clk
00:42:34]} {[%emt 00:00:47]} Nh5 {[%clk 00:30:21]} {[%emt 00:02:40]} 9. Bg3
{[%clk 00:39:45]} {[%emt 00:03:00]} Nxg3 {[%clk 00:28:45]} {[%emt 00:01:44]} 10.
hxg3 {[%clk 00:37:37]} {[%emt 00:02:20]} f6 {[%clk 00:27:22]} {[%emt 00:01:33]}
11. Nxd7 {[%clk 00:37:10]} {[%emt 00:00:38]} Qxd7 {[%clk 00:27:24]} {[%emt
00:00:05]} 12. Nh4 {[%clk 00:34:15]} {[%emt 00:03:07]} Bg6 {[%clk 00:22:54]}
{[%emt 00:04:41]} 13. Nxg6 {[%clk 00:33:25]} {[%emt 00:01:00]} hxg6 {[%clk
00:22:02]} {[%emt 00:01:03]} 14. Bd3 {[%clk 00:32:58]} {[%emt 00:00:36]} f5
{[%clk 00:21:50]} {[%emt 00:00:22]} 15. Qe2 {[%clk 00:30:55]} {[%emt 00:02:13]}
c5 {[%clk 00:21:14]} {[%emt 00:00:47]} 16. c3 {[%clk 00:29:46]} {[%emt
00:01:18]} c4 {[%clk 00:21:00]} {[%emt 00:00:24]} 17. Bc2 {[%clk 00:29:52]}
{[%emt 00:00:04]} b5 {[%clk 00:21:06]} {[%emt 00:00:04]} 18. g4 {[%clk
00:29:15]} {[%emt 00:00:47]} Kf7 {[%clk 00:15:16]} {[%emt 00:06:01]} 19. gxf5
{[%clk 00:29:09]} {[%emt 00:00:15]} exf5 {[%clk 00:14:34]} {[%emt 00:00:52]} 20.
Qf3 {[%clk 00:28:45]} {[%emt 00:00:34]} Qe6 {[%clk 00:14:20]} {[%emt 00:00:23]}
21. Kd2 {[%clk 00:22:45]} {[%emt 00:06:10]} Rh8 {[%clk 00:13:11]} {[%emt
00:01:19]} 22. g4 {[%clk 00:22:27]} {[%emt 00:00:28]} Kf6 {[%clk 00:12:31]}
{[%emt 00:00:51]} 23. gxf5 {[%clk 00:21:01]} {[%emt 00:01:36]} gxf5 {[%clk
00:12:30]} {[%emt 00:00:10]} 24. Rag1 {[%clk 00:20:40]} {[%emt 00:00:30]} Rxh1
{[%clk 00:11:59]} {[%emt 00:00:42]} 25. Qxh1 {[%clk 00:20:37]} {[%emt
00:00:13]} g6 {[%clk 00:05:48]} {[%emt 00:06:22]} 26. Qh7 {[%clk 00:20:17]}
{[%emt 00:00:29]} Qf7 {[%clk 00:05:34]} {[%emt 00:00:19]} 27. Qh4+ {[%clk
00:19:58]} {[%emt 00:00:33]} Kg7 {[%clk 00:05:34]} {[%emt 00:00:11]} 28. Qg5
{[%clk 00:19:33]} {[%emt 00:00:33]} Be7 {[%clk 00:04:26]} {[%emt 00:01:20]} 29.
Qf4 {[%clk 00:18:59]} {[%emt 00:00:44]} Rf8 {[%clk 00:01:36]} {[%emt 00:03:00]}
30. Qh2 {[%clk 00:18:44]} {[%emt 00:00:24]} Rh8 {[%clk 00:01:20]} {[%emt
00:00:27]} 31. Qf4 {[%clk 00:18:46]} {[%emt 00:00:07]} Rh5 {[%clk 00:01:24]}
{[%emt 00:00:06]} 32. Bd1 {[%clk 00:18:38]} {[%emt 00:00:19]} g5 {[%clk
00:01:12]} {[%emt 00:00:23]} 33. Bxh5 {[%clk 00:18:28]} {[%emt 00:00:20]} Qxh5
{[%clk 00:01:19]} {[%emt 00:00:03]} 34. Qe5+ {[%clk 00:18:33]} {[%emt
00:00:05]} Bf6 {[%clk 00:01:17]} {[%emt 00:00:12]} 35. Qxf5 {[%clk 00:18:26]}
{[%emt 00:00:16]} Qh7 {[%clk 00:00:51]} {[%emt 00:00:36]} 36. Qxh7+ {[%clk
00:18:23]} {[%emt 00:00:14]} Kxh7 {[%clk 00:00:57]} {[%emt 00:00:03]} 37. Rg3
{[%clk 00:18:22]} {[%emt 00:00:11]} Kh8 {[%clk 00:00:59]} {[%emt 00:00:08]} 38.
Rf3 {[%clk 00:18:19]} {[%emt 00:00:13]} a5 {[%clk 00:01:05]} 39. Rh3 {[%clk
00:18:09]} {[%emt 00:00:24]} Bg7 {[%clk 00:00:51]} 40. Ke2 {[%clk 00:18:04]}
{[%emt 00:00:40]} Bh6 {[%clk 00:00:55]} 41. Kf3 {[%clk 00:17:56]} {[%emt
00:00:24]} b4 {[%clk 00:01:00]} 42. e4 {[%clk 00:17:42]} {[%emt 00:00:29]}
dxe4+ {[%clk 00:00:22]} 43. Kxe4 {[%clk 00:17:50]} {[%emt 00:00:51]} a4 {[%clk
00:00:31]} 44. cxb4 {[%clk 00:17:55]} {[%emt 00:00:06]} a3 {[%clk 00:00:39]} 45.
bxa3 {[%clk 00:17:59]} {[%emt 00:00:08]} c3 {[%clk 00:00:48]} 46. Rxc3 {[%clk
00:18:07]} {[%emt 00:00:03]} 1-0